[Event "Titled Tuesday Blitz June 14 Late 2022"]
[White "Sarana, Alexey"]
[Black "Kozak, Adam"]
[WhiteFideId "24133795"]
[BlackFideId "753246"]
[WhiteElo "2666"]
[BlackElo "2459"]
[Result "1/2-1/2"]
[Round "10"]
[TimeControl "180+1"]
[Date "2022.06.14"]
[WhiteClock "0:00:04"]
[BlackClock "0:00:11"]

1. d4 {[%clk 0:03:00]}  Nf6 {[%clk 0:02:59]} 2. c4 {[%clk 0:03:01]}  e6 {[%clk 0:02:59]} 3. Nc3 {[%clk 0:03:02]}  d5 {[%clk 0:02:59]} 4. cxd5 {[%clk 0:03:01]}  exd5 {[%clk 0:02:59]} 5. Bg5 {[%clk 0:03:02]}  c6 {[%clk 0:02:59]} 6. e3 {[%clk 0:03:02]}  Be7 {[%clk 0:02:59]} 7. Bd3 {[%clk 0:03:02]}  Nbd7 {[%clk 0:02:59]} 8. h3 {[%clk 0:03:00]}  Nb6 {[%clk 0:02:58]} 9. Qc2 {[%clk 0:02:58]}  Nh5 {[%clk 0:02:56]} 10. Bxe7 {[%clk 0:02:57]}  Qxe7 {[%clk 0:02:56]} 11. Nge2 {[%clk 0:02:56]}  g6 {[%clk 0:02:55]} 12. O-O-O {[%clk 0:02:49]}  Be6 {[%clk 0:02:50]} 13. Kb1 {[%clk 0:02:49]}  O-O-O {[%clk 0:02:50]} 14. Na4 {[%clk 0:02:46]}  Kb8 {[%clk 0:02:50]} 15. Nc5 {[%clk 0:02:44]}  Ng7 {[%clk 0:02:49]} 16. Ng3 {[%clk 0:02:21]}  h5 {[%clk 0:02:48]} 17. h4 {[%clk 0:02:22]}  Bc8 {[%clk 0:02:45]} 18. Ka1 {[%clk 0:02:21]}  Nd7 {[%clk 0:02:45]} 19. Na4 {[%clk 0:02:18]}  Nb6 {[%clk 0:02:45]} 20. Nc5 {[%clk 0:02:18]}  Nd7 {[%clk 0:02:45]} 21. Nb3 {[%clk 0:02:18]}  Nb6 {[%clk 0:02:42]} 22. Rc1 {[%clk 0:02:17]}  Ne6 {[%clk 0:02:40]} 23. Ne2 {[%clk 0:02:15]}  Ng7 {[%clk 0:02:40]} 24. Ng3 {[%clk 0:02:05]}  Ne6 {[%clk 0:02:39]} 25. Na5 {[%clk 0:02:05]}  Qb4 {[%clk 0:02:37]} 26. Qc3 {[%clk 0:02:03]}  Qxc3 {[%clk 0:02:36]} 27. bxc3 {[%clk 0:02:04]}  Ng7 {[%clk 0:02:32]} 28. Rb1 {[%clk 0:02:03]}  Ka8 {[%clk 0:02:31]} 29. Rb4 {[%clk 0:01:59]}  Ne8 {[%clk 0:02:30]} 30. e4 {[%clk 0:01:47]}  dxe4 {[%clk 0:02:28]} 31. Nxe4 {[%clk 0:01:41]}  Bf5 {[%clk 0:02:28]} 32. Nc5 {[%clk 0:01:40]}  Bxd3 {[%clk 0:02:27]} 33. Nxd3 {[%clk 0:01:41]}  Nd6 {[%clk 0:02:26]} 34. Re1 {[%clk 0:01:25]}  Rhe8 {[%clk 0:02:23]} 35. Rbb1 {[%clk 0:01:25]}  Ne4 {[%clk 0:02:17]} 36. Kb2 {[%clk 0:00:54]}  Na4+ {[%clk 0:02:12]} 37. Kc2 {[%clk 0:00:55]}  Nexc3 {[%clk 0:02:12]} 38. Rxe8 {[%clk 0:00:43]}  Rxe8 {[%clk 0:02:11]} 39. Rxb7 {[%clk 0:00:43]}  Nb5 {[%clk 0:01:58]} 40. Rxf7 {[%clk 0:00:40]}  Nxd4+ {[%clk 0:01:58]} 41. Kd2 {[%clk 0:00:29]}  Re2+ {[%clk 0:01:30]} 42. Kc1 {[%clk 0:00:21]}  Kb8 {[%clk 0:01:25]} 43. Nb4 {[%clk 0:00:14]}  c5 {[%clk 0:00:58]} 44. Nbc6+ {[%clk 0:00:11]}  Nxc6 {[%clk 0:00:57]} 45. Nxc6+ {[%clk 0:00:12]}  Kc8 {[%clk 0:00:58]} 46. Nxa7+ {[%clk 0:00:12]}  Kd8 {[%clk 0:00:59]} 47. Nc6+ {[%clk 0:00:09]}  Ke8 {[%clk 0:00:59]} 48. Rf3 {[%clk 0:00:08]}  Rxa2 {[%clk 0:00:57]} 49. Ne5 {[%clk 0:00:09]}  Ke7 {[%clk 0:00:51]} 50. Nxg6+ {[%clk 0:00:09]}  Kd6 {[%clk 0:00:51]} 51. Nf4 {[%clk 0:00:08]}  c4 {[%clk 0:00:52]} 52. Nxh5 {[%clk 0:00:06]}  Kc5 {[%clk 0:00:48]} 53. Ng3 {[%clk 0:00:06]}  Kb4 {[%clk 0:00:46]} 54. Ne4 {[%clk 0:00:05]}  c3 {[%clk 0:00:45]} 55. Rf8 {[%clk 0:00:05]}  Kc4 {[%clk 0:00:34]} 56. Nxc3 {[%clk 0:00:03]}  Kxc3 {[%clk 0:00:25]} 57. Rf3+ {[%clk 0:00:03]}  Kc4 {[%clk 0:00:24]} 58. h5 {[%clk 0:00:03]}  Nc3 {[%clk 0:00:25]} 59. Rf8 {[%clk 0:00:03]}  Kd3 {[%clk 0:00:20]} 60. Rd8+ {[%clk 0:00:03]}  Kc4 {[%clk 0:00:18]} 61. h6 {[%clk 0:00:03]}  Ra7 {[%clk 0:00:18]} 62. g4 {[%clk 0:00:03]}  Ra1+ {[%clk 0:00:16]} 63. Kc2 {[%clk 0:00:03]}  Ra2+ {[%clk 0:00:17]} 64. Kc1 {[%clk 0:00:03]}  Ra1+ {[%clk 0:00:17]} 65. Kb2 {[%clk 0:00:04]}  Ra2+ {[%clk 0:00:14]} 66. Kc1 {[%clk 0:00:04]}  Ra1+ {[%clk 0:00:11]} 1/2-1/2


[Site "https://www.chess.com"]

[Event "Titled Tuesday Blitz June 14 Late 2022"]
[White "Shirov, Alexei"]
[Black "Hjartarson, Johann"]
[WhiteFideId "2209390"]
[BlackFideId "2300044"]
[WhiteElo "2678"]
[BlackElo "2458"]
[Result "1-0"]
[Round "10"]
[TimeControl "180+1"]
[Date "2022.06.14"]
[WhiteClock "0:00:26"]
[BlackClock "0:00:11"]

1. e4 {[%clk 0:03:00]}  g6 {[%clk 0:03:00]} 2. d4 {[%clk 0:03:00]}  Bg7 {[%clk 0:03:00]} 3. Nc3 {[%clk 0:03:00]}  d6 {[%clk 0:03:00]} 4. f4 {[%clk 0:03:00]}  Nf6 {[%clk 0:03:00]} 5. Nf3 {[%clk 0:03:00]}  O-O {[%clk 0:03:00]} 6. e5 {[%clk 0:02:58]}  dxe5 {[%clk 0:02:59]} 7. fxe5 {[%clk 0:02:57]}  Nd5 {[%clk 0:02:56]} 8. Bc4 {[%clk 0:02:56]}  Nb6 {[%clk 0:02:54]} 9. Be2 {[%clk 0:02:46]}  Nc6 {[%clk 0:02:53]} 10. O-O {[%clk 0:02:39]}  h6 {[%clk 0:02:48]} 11. Be3 {[%clk 0:02:29]}  Be6 {[%clk 0:02:47]} 12. Qd2 {[%clk 0:02:25]}  Kh7 {[%clk 0:02:44]} 13. Rad1 {[%clk 0:02:23]}  Nc4 {[%clk 0:02:35]} 14. Bxc4 {[%clk 0:02:21]}  Bxc4 {[%clk 0:02:35]} 15. Rfe1 {[%clk 0:02:14]}  e6 {[%clk 0:02:30]} 16. Bf2 {[%clk 0:02:03]}  Bd5 {[%clk 0:02:22]} 17. Ne4 {[%clk 0:01:41]}  g5 {[%clk 0:02:08]} 18. Qd3 {[%clk 0:01:37]}  Kg8 {[%clk 0:02:05]} 19. c4 {[%clk 0:01:36]}  Bxe4 {[%clk 0:01:50]} 20. Qxe4 {[%clk 0:01:36]}  Ne7 {[%clk 0:01:30]} 21. h4 {[%clk 0:01:35]}  Nf5 {[%clk 0:01:19]} 22. hxg5 {[%clk 0:01:31]}  hxg5 {[%clk 0:01:19]} 23. g4 {[%clk 0:01:24]}  Nh4 {[%clk 0:01:11]} 24. Bxh4 {[%clk 0:01:21]}  gxh4 {[%clk 0:01:11]} 25. Kg2 {[%clk 0:01:14]}  c6 {[%clk 0:00:59]} 26. g5 {[%clk 0:01:06]}  Qa5 {[%clk 0:00:52]} 27. Rh1 {[%clk 0:00:58]}  Qxa2 {[%clk 0:00:49]} 28. Rxh4 {[%clk 0:00:57]}  Rfe8 {[%clk 0:00:37]} 29. g6 {[%clk 0:00:52]}  Qxb2+ {[%clk 0:00:33]} 30. Rd2 {[%clk 0:00:52]}  Qc1 {[%clk 0:00:32]} 31. Rf2 {[%clk 0:00:42]}  f5 {[%clk 0:00:22]} 32. exf6 {[%clk 0:00:39]}  Bxf6 {[%clk 0:00:22]} 33. Rh7 {[%clk 0:00:36]}  Rad8 {[%clk 0:00:19]} 34. g7 {[%clk 0:00:31]}  Bxg7 {[%clk 0:00:13]} 35. Qg6 {[%clk 0:00:30]}  Re7 {[%clk 0:00:13]} 36. Ng5 {[%clk 0:00:28]}  Qxc4 {[%clk 0:00:11]} 37. Rh8+ {[%clk 0:00:26]} 1-0


[Site "https://www.chess.com"]

[Event "Titled Tuesday Blitz June 14 Late 2022"]
[White "Silvestre, Christian"]
[Black "Malka, Samuel"]
[WhiteFideId "30956269"]
[BlackFideId "20643675"]
[WhiteElo "2326"]
[BlackElo "2471"]
[Result "1-0"]
[Round "10"]
[TimeControl "180+1"]
[Date "2022.06.15"]
[WhiteClock "0:00:18"]
[BlackClock "0:00:09"]

1. e4 {[%clk 0:02:46]}  c5 {[%clk 0:02:56]} 2. Nf3 {[%clk 0:02:44]}  d6 {[%clk 0:02:54]} 3. d4 {[%clk 0:02:44]}  cxd4 {[%clk 0:02:55]} 4. Nxd4 {[%clk 0:02:43]}  Nf6 {[%clk 0:02:55]} 5. Nc3 {[%clk 0:02:43]}  g6 {[%clk 0:02:55]} 6. Be3 {[%clk 0:02:41]}  Bg7 {[%clk 0:02:56]} 7. f3 {[%clk 0:02:39]}  O-O {[%clk 0:02:56]} 8. Qd2 {[%clk 0:02:38]}  Nc6 {[%clk 0:02:56]} 9. O-O-O {[%clk 0:02:37]}  d5 {[%clk 0:02:54]} 10. exd5 {[%clk 0:02:31]}  Nxd5 {[%clk 0:02:55]} 11. Nxc6 {[%clk 0:02:30]}  bxc6 {[%clk 0:02:56]} 12. Bd4 {[%clk 0:02:29]}  Bxd4 {[%clk 0:02:56]} 13. Qxd4 {[%clk 0:02:28]}  Qb6 {[%clk 0:02:57]} 14. Nxd5 {[%clk 0:02:18]}  cxd5 {[%clk 0:02:50]} 15. Qxb6 {[%clk 0:02:12]}  axb6 {[%clk 0:02:51]} 16. a3 {[%clk 0:02:07]}  Bb7 {[%clk 0:02:52]} 17. Kb1 {[%clk 0:01:55]}  e5 {[%clk 0:02:47]} 18. c4 {[%clk 0:01:53]}  d4 {[%clk 0:02:41]} 19. Bd3 {[%clk 0:01:52]}  f5 {[%clk 0:02:36]} 20. Rhe1 {[%clk 0:01:50]}  Rfe8 {[%clk 0:02:35]} 21. Rd2 {[%clk 0:01:49]}  Re7 {[%clk 0:02:15]} 22. Rde2 {[%clk 0:01:45]}  Rae8 {[%clk 0:02:15]} 23. Bc2 {[%clk 0:01:28]}  Kf7 {[%clk 0:02:05]} 24. Ba4 {[%clk 0:01:26]}  e4 {[%clk 0:01:57]} 25. Bxe8+ {[%clk 0:01:24]}  Kxe8 {[%clk 0:01:52]} 26. fxe4 {[%clk 0:01:17]}  fxe4 {[%clk 0:01:51]} 27. b4 {[%clk 0:01:12]}  e3 {[%clk 0:01:48]} 28. Kb2 {[%clk 0:01:09]}  Be4 {[%clk 0:01:39]} 29. Rd1 {[%clk 0:01:00]}  Rd7 {[%clk 0:01:39]} 30. c5 {[%clk 0:00:58]}  bxc5 {[%clk 0:01:37]} 31. bxc5 {[%clk 0:00:59]}  Kd8 {[%clk 0:01:36]} 32. Kb3 {[%clk 0:00:53]}  Bd5+ {[%clk 0:01:24]} 33. Kc2 {[%clk 0:00:51]}  Bc4 {[%clk 0:01:20]} 34. Ree1 {[%clk 0:00:43]}  Kc7 {[%clk 0:00:51]} 35. a4 {[%clk 0:00:41]}  Kc6 {[%clk 0:00:52]} 36. a5 {[%clk 0:00:41]}  Kxc5 {[%clk 0:00:52]} 37. Rxe3 {[%clk 0:00:40]}  Bd5 {[%clk 0:00:37]} 38. Rg3 {[%clk 0:00:35]}  Ra7 {[%clk 0:00:36]} 39. Ra1 {[%clk 0:00:33]}  Be4+ {[%clk 0:00:35]} 40. Kd2 {[%clk 0:00:32]}  Ra6 {[%clk 0:00:32]} 41. Rg5+ {[%clk 0:00:27]}  Kc4 {[%clk 0:00:30]} 42. Ra4+ {[%clk 0:00:27]}  Kb3 {[%clk 0:00:27]} 43. Rxd4 {[%clk 0:00:27]}  Bf5 {[%clk 0:00:28]} 44. Rd5 {[%clk 0:00:26]}  Kc4 {[%clk 0:00:28]} 45. Rdxf5 {[%clk 0:00:25]}  gxf5 {[%clk 0:00:26]} 46. Rxf5 {[%clk 0:00:26]}  Kd4 {[%clk 0:00:25]} 47. Rh5 {[%clk 0:00:22]}  h6 {[%clk 0:00:25]} 48. Ke2 {[%clk 0:00:21]}  Ke4 {[%clk 0:00:25]} 49. Kf2 {[%clk 0:00:21]}  Kf4 {[%clk 0:00:26]} 50. g3+ {[%clk 0:00:21]}  Kg4 {[%clk 0:00:26]} 51. Rh4+ {[%clk 0:00:21]}  Kg5 {[%clk 0:00:23]} 52. Ra4 {[%clk 0:00:22]}  Kf5 {[%clk 0:00:23]} 53. Kg2 {[%clk 0:00:22]}  Kg5 {[%clk 0:00:24]} 54. Kh3 {[%clk 0:00:22]}  Kh5 {[%clk 0:00:24]} 55. Kg2 {[%clk 0:00:20]}  Kg5 {[%clk 0:00:24]} 56. h4+ {[%clk 0:00:20]}  Kf5 {[%clk 0:00:24]} 57. g4+ {[%clk 0:00:20]}  Ke5 {[%clk 0:00:23]} 58. Kf3 {[%clk 0:00:20]}  Ke6 {[%clk 0:00:20]} 59. Ke4 {[%clk 0:00:20]}  Kf6 {[%clk 0:00:17]} 60. Kd4 {[%clk 0:00:20]}  Ke6 {[%clk 0:00:16]} 61. Kc5 {[%clk 0:00:20]}  Kd7 {[%clk 0:00:16]} 62. Kb5 {[%clk 0:00:20]}  Ra8 {[%clk 0:00:13]} 63. a6 {[%clk 0:00:20]}  Kc7 {[%clk 0:00:14]} 64. a7 {[%clk 0:00:20]}  Kb7 {[%clk 0:00:14]} 65. Kc5 {[%clk 0:00:20]}  Rc8+ {[%clk 0:00:15]} 66. Kd5 {[%clk 0:00:20]}  Ka8 {[%clk 0:00:15]} 67. Ke5 {[%clk 0:00:20]}  Rf8 {[%clk 0:00:16]} 68. g5 {[%clk 0:00:18]}  hxg5 {[%clk 0:00:16]} 69. hxg5 {[%clk 0:00:19]}  Rf1 {[%clk 0:00:15]} 70. g6 {[%clk 0:00:19]}  Rf2 {[%clk 0:00:10]} 71. Rf4 {[%clk 0:00:17]}  Rg2 {[%clk 0:00:10]} 72. Kf6 {[%clk 0:00:17]}  Kxa7 {[%clk 0:00:10]} 73. g7 {[%clk 0:00:17]}  Kb6 {[%clk 0:00:10]} 74. Kf7 {[%clk 0:00:17]}  Kc7 {[%clk 0:00:10]} 75. g8=Q {[%clk 0:00:17]}  Rxg8 {[%clk 0:00:09]} 76. Kxg8 {[%clk 0:00:18]} 1-0


[Site "https://www.chess.com"]

[Event "Titled Tuesday Blitz June 14 Late 2022"]
[White "Souleidis, Georgios"]
[Black "Toncheva, Nadya"]
[WhiteFideId "4206827"]
[BlackFideId "2924056"]
[WhiteElo "2401"]
[BlackElo "1888"]
[Result "0-1"]
[Round "10"]
[TimeControl "180+1"]
[Date "2022.06.15"]
[WhiteClock "0:00:08"]
[BlackClock "0:00:03"]

1. e4 {[%clk 0:02:56]}  c5 {[%clk 0:02:59]} 2. Be2 {[%clk 0:02:56]}  g6 {[%clk 0:02:58]} 3. d3 {[%clk 0:02:55]}  Bg7 {[%clk 0:02:59]} 4. f4 {[%clk 0:02:56]}  Nc6 {[%clk 0:02:59]} 5. Nf3 {[%clk 0:02:56]}  e6 {[%clk 0:02:58]} 6. O-O {[%clk 0:02:57]}  Nge7 {[%clk 0:02:59]} 7. c3 {[%clk 0:02:58]}  d5 {[%clk 0:02:58]} 8. Na3 {[%clk 0:02:58]}  Rb8 {[%clk 0:02:54]} 9. Nc2 {[%clk 0:02:58]}  b5 {[%clk 0:02:53]} 10. a3 {[%clk 0:02:57]}  O-O {[%clk 0:02:53]} 11. e5 {[%clk 0:02:58]}  d4 {[%clk 0:02:45]} 12. cxd4 {[%clk 0:02:52]}  cxd4 {[%clk 0:02:39]} 13. b4 {[%clk 0:02:52]}  Qb6 {[%clk 0:02:37]} 14. Bb2 {[%clk 0:02:43]}  Rd8 {[%clk 0:02:26]} 15. Ng5 {[%clk 0:02:33]}  Bb7 {[%clk 0:02:03]} 16. Ne4 {[%clk 0:02:31]}  Nxe5 {[%clk 0:02:02]} 17. Nc5 {[%clk 0:02:07]}  N5c6 {[%clk 0:01:57]} 18. Bf3 {[%clk 0:02:04]}  Nd5 {[%clk 0:01:29]} 19. g3 {[%clk 0:02:03]}  a5 {[%clk 0:01:28]} 20. Nxb7 {[%clk 0:01:45]}  Rxb7 {[%clk 0:01:23]} 21. Qd2 {[%clk 0:01:42]}  Ra7 {[%clk 0:01:13]} 22. h4 {[%clk 0:01:31]}  axb4 {[%clk 0:01:00]} 23. Nxb4 {[%clk 0:01:32]}  Ncxb4 {[%clk 0:00:48]} 24. axb4 {[%clk 0:01:33]}  Ra4 {[%clk 0:00:49]} 25. h5 {[%clk 0:01:06]}  Bf8 {[%clk 0:00:40]} 26. hxg6 {[%clk 0:01:05]}  hxg6 {[%clk 0:00:37]} 27. Qf2 {[%clk 0:00:46]}  Ne3 {[%clk 0:00:31]} 28. Rfb1 {[%clk 0:00:34]}  Rxb4 {[%clk 0:00:20]} 29. Bc1 {[%clk 0:00:32]}  Rxb1 {[%clk 0:00:18]} 30. Rxb1 {[%clk 0:00:33]}  b4 {[%clk 0:00:18]} 31. g4 {[%clk 0:00:33]}  Bd6 {[%clk 0:00:14]} 32. Be2 {[%clk 0:00:24]}  Qc5 {[%clk 0:00:11]} 33. f5 {[%clk 0:00:13]}  exf5 {[%clk 0:00:07]} 34. gxf5 {[%clk 0:00:13]}  Nxf5 {[%clk 0:00:06]} 35. Bg5 {[%clk 0:00:11]}  Re8 {[%clk 0:00:06]} 36. Bf6 {[%clk 0:00:11]}  Qc2 {[%clk 0:00:05]} 37. Re1 {[%clk 0:00:11]}  Bg3 {[%clk 0:00:04]} 38. Qg2 {[%clk 0:00:09]}  Bxe1 {[%clk 0:00:04]} 39. Qh3 {[%clk 0:00:09]}  Ng7 {[%clk 0:00:05]} 40. Qh6 {[%clk 0:00:09]}  Bf2+ {[%clk 0:00:05]} 41. Kg2 {[%clk 0:00:09]}  Qc6+ {[%clk 0:00:02]} 42. Kf1 {[%clk 0:00:08]}  Qxf6 {[%clk 0:00:03]} 0-1


[Site "https://www.chess.com"]

[Event "Titled Tuesday Blitz June 14 Late 2022"]
[White "Terry, Renato"]
[Black "Babazada, Khazar"]
[WhiteFideId "3803457"]
[BlackFideId "13413554"]
[WhiteElo "2577"]
[BlackElo "2406"]
[Result "0-1"]
[Round "10"]
[TimeControl "180+1"]
[Date "2022.06.14"]
[WhiteClock "0:00:01"]
[BlackClock "0:00:26"]

1. d4 {[%clk 0:03:00]}  g6 {[%clk 0:02:59]} 2. e4 {[%clk 0:03:00]}  c6 {[%clk 0:02:55]} 3. c4 {[%clk 0:02:58]}  Bg7 {[%clk 0:02:55]} 4. Nc3 {[%clk 0:02:58]}  d6 {[%clk 0:02:54]} 5. h3 {[%clk 0:02:57]}  Nf6 {[%clk 0:02:53]} 6. Nf3 {[%clk 0:02:57]}  O-O {[%clk 0:02:53]} 7. Be2 {[%clk 0:02:52]}  Nbd7 {[%clk 0:02:52]} 8. O-O {[%clk 0:02:45]}  e5 {[%clk 0:02:53]} 9. dxe5 {[%clk 0:02:43]}  dxe5 {[%clk 0:02:53]} 10. Be3 {[%clk 0:02:43]}  Nh5 {[%clk 0:02:52]} 11. c5 {[%clk 0:02:40]}  Nf4 {[%clk 0:02:49]} 12. Bc4 {[%clk 0:02:40]}  Qe7 {[%clk 0:02:47]} 13. b4 {[%clk 0:02:40]}  a5 {[%clk 0:02:47]} 14. a3 {[%clk 0:02:38]}  g5 {[%clk 0:02:36]} 15. Na4 {[%clk 0:02:16]}  g4 {[%clk 0:02:23]} 16. hxg4 {[%clk 0:02:10]}  Nf6 {[%clk 0:02:23]} 17. g5 {[%clk 0:01:42]}  Nxe4 {[%clk 0:02:12]} 18. Nb6 {[%clk 0:01:39]}  Nxg5 {[%clk 0:02:12]} 19. Bxf4 {[%clk 0:01:33]}  exf4 {[%clk 0:01:59]} 20. Re1 {[%clk 0:00:26]}  Nxf3+ {[%clk 0:01:26]} 21. Qxf3 {[%clk 0:00:26]}  Qg5 {[%clk 0:01:27]} 22. Nxc8 {[%clk 0:00:21]}  Bxa1 {[%clk 0:01:27]} 23. Nd6 {[%clk 0:00:07]}  Be5 {[%clk 0:00:45]} 24. Nxb7 {[%clk 0:00:07]}  axb4 {[%clk 0:00:44]} 25. axb4 {[%clk 0:00:08]}  Rfe8 {[%clk 0:00:38]} 26. Na5 {[%clk 0:00:05]}  Bd4 {[%clk 0:00:37]} 27. Rd1 {[%clk 0:00:03]}  Rad8 {[%clk 0:00:32]} 28. Nxc6 {[%clk 0:00:02]}  Bxf2+ {[%clk 0:00:33]} 29. Kxf2 {[%clk 0:00:03]}  Qh4+ {[%clk 0:00:26]} 30. Kf1 {[%clk 0:00:01]}  Rxd1+ {[%clk 0:00:25]} 31. Qxd1 {[%clk 0:00:01]}  Qh1+ {[%clk 0:00:25]} 32. Kf2 {[%clk 0:00:02]}  Qxd1 {[%clk 0:00:26]} 33. Bf1 {[%clk 0:00:01]}  Qe1+ {[%clk 0:00:26]} 34. Kf3 {[%clk 0:00:01]}  Qg3# {[%clk 0:00:26]} 0-1


[Site "https://www.chess.com"]

[Event "Titled Tuesday Blitz June 14 Late 2022"]
[White "Tica, Sven"]
[Black "Mekhitarian, Krikor Sevag"]
[WhiteFideId "14526948"]
[BlackFideId "2107660"]
[WhiteElo "2346"]
[BlackElo "2611"]
[Result "0-1"]
[Round "10"]
[TimeControl "180+1"]
[Date "2022.06.14"]
[WhiteClock "0:01:55"]
[BlackClock "0:01:49"]

1. d4 {[%clk 0:03:00]}  d5 {[%clk 0:02:59]} 2. Nc3 {[%clk 0:03:01]}  Bf5 {[%clk 0:02:42]} 3. Bf4 {[%clk 0:02:58]}  e6 {[%clk 0:02:42]} 4. e3 {[%clk 0:02:57]}  Bd6 {[%clk 0:02:39]} 5. Bxd6 {[%clk 0:02:53]}  Qxd6 {[%clk 0:02:40]} 6. g4 {[%clk 0:02:45]}  Bg6 {[%clk 0:02:38]} 7. h4 {[%clk 0:02:44]}  h5 {[%clk 0:02:32]} 8. Bd3 {[%clk 0:02:42]}  Bxd3 {[%clk 0:02:29]} 9. Qxd3 {[%clk 0:02:43]}  hxg4 {[%clk 0:02:28]} 10. O-O-O {[%clk 0:02:40]}  Nf6 {[%clk 0:02:27]} 11. Nge2 {[%clk 0:02:40]}  Nbd7 {[%clk 0:02:19]} 12. Nf4 {[%clk 0:02:30]}  c6 {[%clk 0:02:14]} 13. Rdg1 {[%clk 0:02:25]}  O-O-O {[%clk 0:02:12]} 14. a3 {[%clk 0:02:21]}  Kb8 {[%clk 0:02:12]} 15. f3 {[%clk 0:02:16]}  e5 {[%clk 0:02:10]} 16. dxe5 {[%clk 0:02:00]}  Nxe5 {[%clk 0:02:10]} 17. Qf5 {[%clk 0:02:00]}  Nxf3 {[%clk 0:02:06]} 18. Rxg4 {[%clk 0:01:56]}  Nxg4 {[%clk 0:02:03]} 19. Qxg4 {[%clk 0:01:57]}  Ne5 {[%clk 0:01:58]} 20. Qf5 {[%clk 0:01:57]}  g6 {[%clk 0:01:55]} 21. Qg5 {[%clk 0:01:58]}  Rde8 {[%clk 0:01:51]} 22. Nce2 {[%clk 0:01:55]}  Nc4 {[%clk 0:01:49]} 0-1


[Site "https://www.chess.com"]

[Event "Titled Tuesday Blitz June 14 Late 2022"]
[White "Titichoca Daza, Daniel"]
[Black "Mikhailov, Viacheslav"]
[WhiteFideId "3309550"]
[BlackFideId "4187369"]
[WhiteElo "1912"]
[BlackElo "2381"]
[Result "0-1"]
[Round "10"]
[TimeControl "180+1"]
[Date "2022.06.14"]
[WhiteClock "0:00:02"]
[BlackClock "0:00:40"]

1. e4 {[%clk 0:03:00]}  d6 {[%clk 0:02:58]} 2. d4 {[%clk 0:03:00]}  Nf6 {[%clk 0:02:56]} 3. Nc3 {[%clk 0:02:58]}  g6 {[%clk 0:02:55]} 4. Bg5 {[%clk 0:02:54]}  Bg7 {[%clk 0:02:55]} 5. e5 {[%clk 0:02:53]}  Nfd7 {[%clk 0:02:54]} 6. f4 {[%clk 0:02:33]}  O-O {[%clk 0:02:53]} 7. Bc4 {[%clk 0:02:16]}  Nb6 {[%clk 0:02:50]} 8. Bb3 {[%clk 0:02:16]}  Nc6 {[%clk 0:02:48]} 9. Ne4 {[%clk 0:02:06]}  a5 {[%clk 0:02:34]} 10. c3 {[%clk 0:02:05]}  a4 {[%clk 0:02:33]} 11. Bc2 {[%clk 0:02:04]}  a3 {[%clk 0:02:33]} 12. b3 {[%clk 0:02:03]}  f6 {[%clk 0:02:30]} 13. exf6 {[%clk 0:01:54]}  exf6 {[%clk 0:02:31]} 14. Bh4 {[%clk 0:01:54]}  Re8 {[%clk 0:02:29]} 15. Ne2 {[%clk 0:01:53]}  Bg4 {[%clk 0:02:29]} 16. Bd3 {[%clk 0:01:48]}  d5 {[%clk 0:02:10]} 17. Nf2 {[%clk 0:01:45]}  Bxe2 {[%clk 0:02:02]} 18. Bxe2 {[%clk 0:01:46]}  Qe7 {[%clk 0:02:02]} 19. Rc1 {[%clk 0:01:42]}  Bh6 {[%clk 0:01:42]} 20. Bg3 {[%clk 0:01:40]}  Nc8 {[%clk 0:01:31]} 21. Rc2 {[%clk 0:01:33]}  Nd6 {[%clk 0:01:31]} 22. O-O {[%clk 0:01:34]}  Nf5 {[%clk 0:01:32]} 23. Ng4 {[%clk 0:01:29]}  Bg7 {[%clk 0:01:32]} 24. Bf3 {[%clk 0:01:27]}  h5 {[%clk 0:01:22]} 25. Bxd5+ {[%clk 0:01:25]}  Kh7 {[%clk 0:01:22]} 26. Re1 {[%clk 0:01:00]}  Qd6 {[%clk 0:01:14]} 27. Rxe8 {[%clk 0:00:47]}  Rxe8 {[%clk 0:01:12]} 28. Bf7 {[%clk 0:00:45]}  Re7 {[%clk 0:00:58]} 29. Bxg6+ {[%clk 0:00:19]}  Kxg6 {[%clk 0:00:59]} 30. Nf2 {[%clk 0:00:14]}  Qe6 {[%clk 0:00:44]} 31. Nd3 {[%clk 0:00:05]}  Ne3 {[%clk 0:00:43]} 32. f5+ {[%clk 0:00:05]}  Qxf5 {[%clk 0:00:44]} 33. Rf2 {[%clk 0:00:02]}  Nxd1 {[%clk 0:00:40]} 0-1


[Site "https://www.chess.com"]